[Event "Early-Titled-Tuesday-Blitz-May-07-2024"]
[Site "Chess.com"]
[Date "2024.05.07"]
[Round "1"]
[White "Let_it_be_1"]
[Black "kekic76"]
[Result "1-0"]
[WhiteElo "2648"]
[BlackElo "2351"]
[TimeControl "180+1"]
[EndTime "8:01:28 PDT"]
[Termination "Let_it_be_1 won by resignation"]

1. e4 {[%clk 0:02:59.4]} 1... c6 {[%clk 0:02:57.1]} 2. d4 {[%clk 0:02:58.6]}
2... d5 {[%clk 0:02:57.5]} 3. Nd2 {[%clk 0:02:59.3]} 3... dxe4 {[%clk
0:02:57.4]} 4. Nxe4 {[%clk 0:03:00.2]} 4... Bf5 {[%clk 0:02:57.7]} 5. Ng3 {[%clk
0:03:00.1]} 5... Bg6 {[%clk 0:02:57.8]} 6. N1e2 {[%clk 0:03:00.5]} 6... h6
{[%clk 0:02:57.1]} 7. Nf4 {[%clk 0:02:58.5]} 7... Bh7 {[%clk 0:02:56.9]} 8. c3
{[%clk 0:02:55.2]} 8... Nf6 {[%clk 0:02:56.4]} 9. Bc4 {[%clk 0:02:48.9]} 9... e6
{[%clk 0:02:53.3]} 10. Ngh5 {[%clk 0:02:33.8]} 10... Be7 {[%clk 0:02:40.9]} 11.
Nxg7+ {[%clk 0:02:32]} 11... Kf8 {[%clk 0:02:40.6]} 12. Ngxe6+ {[%clk
0:02:31.6]} 1-0

[Event "Early-Titled-Tuesday-Blitz-May-07-2024"]
[Site "Chess.com"]
[Date "2024.05.07"]
[Round "1"]
[White "vaishali2001"]
[Black "OppieZippy"]
[Result "1-0"]
[WhiteElo "2697"]
[BlackElo "2396"]
[TimeControl "180+1"]
[EndTime "8:02:09 PDT"]
[Termination "vaishali2001 won by resignation"]

1. e4 {[%clk 0:02:57]} 1... Nf6 {[%clk 0:03:00]} 2. e5 {[%clk 0:02:56.5]} 2...
Nd5 {[%clk 0:02:59.1]} 3. d4 {[%clk 0:02:56.5]} 3... d6 {[%clk 0:02:59.6]} 4.
Nf3 {[%clk 0:02:55.8]} 4... dxe5 {[%clk 0:02:59.7]} 5. Nxe5 {[%clk 0:02:56.7]}
5... c6 {[%clk 0:03:00.1]} 6. Bc4 {[%clk 0:02:54.5]} 6... Nd7 {[%clk 0:02:58.6]}
7. Nf3 {[%clk 0:02:48.2]} 7... N7f6 {[%clk 0:02:58]} 8. O-O {[%clk 0:02:47.8]}
8... Bf5 {[%clk 0:02:57.6]} 9. c3 {[%clk 0:02:43.5]} 9... e6 {[%clk 0:02:57.8]}
10. Bg5 {[%clk 0:02:44]} 10... Bd6 {[%clk 0:02:55.5]} 11. Nbd2 {[%clk
0:02:44.1]} 11... h6 {[%clk 0:02:55.3]} 12. Bh4 {[%clk 0:02:44.1]} 12... O-O
{[%clk 0:02:55.8]} 13. Re1 {[%clk 0:02:44]} 13... Be7 {[%clk 0:02:54.8]} 14. h3
{[%clk 0:02:43.8]} 14... a5 {[%clk 0:02:50.2]} 15. a4 {[%clk 0:02:43.4]} 15...
Re8 {[%clk 0:02:48.7]} 16. Ne5 {[%clk 0:02:43.1]} 16... Nd7 {[%clk 0:02:45.8]}
17. Bxe7 {[%clk 0:02:39.8]} 17... Qxe7 {[%clk 0:02:46.7]} 18. Ndf3 {[%clk
0:02:39.7]} 18... Nxe5 {[%clk 0:02:43.2]} 19. Nxe5 {[%clk 0:02:40.2]} 19... Bh7
{[%clk 0:02:38.9]} 20. Qf3 {[%clk 0:02:38]} 20... Rad8 {[%clk 0:02:37.7]} 21.
Re2 {[%clk 0:02:35.4]} 21... Qc7 {[%clk 0:02:37.7]} 22. Rae1 {[%clk 0:02:35.1]}
22... Nf6 {[%clk 0:02:33.7]} 23. Nd3 {[%clk 0:02:27.2]} 23... Be4 {[%clk
0:02:31.9]} 24. Rxe4 {[%clk 0:02:27]} 1-0

[Event "Early-Titled-Tuesday-Blitz-May-07-2024"]
[Site "Chess.com"]
[Date "2024.05.07"]
[Round "1"]
[White "Aisen1011"]
[Black "GMSrinath"]
[Result "0-1"]
[WhiteElo "2475"]
[BlackElo "2847"]
[TimeControl "180+1"]
[EndTime "8:02:41 PDT"]
[Termination "GMSrinath won by resignation"]

1. d4 {[%clk 0:02:59.8]} 1... f5 {[%clk 0:02:58.1]} 2. g3 {[%clk 0:02:41.4]}
2... Nf6 {[%clk 0:02:56.2]} 3. Bg2 {[%clk 0:02:32.9]} 3... g6 {[%clk 0:02:55.2]}
4. Nd2 {[%clk 0:02:33.3]} 4... Bg7 {[%clk 0:02:54.7]} 5. e4 {[%clk 0:02:31.8]}
5... Nxe4 {[%clk 0:02:50.1]} 6. Nxe4 {[%clk 0:02:32.7]} 6... fxe4 {[%clk
0:02:51]} 7. Bxe4 {[%clk 0:02:32.5]} 7... O-O {[%clk 0:02:51]} 8. Ne2 {[%clk
0:02:32.1]} 8... d5 {[%clk 0:02:48.8]} 9. Bg2 {[%clk 0:02:29.7]} 9... Nc6 {[%clk
0:02:48.9]} 10. O-O {[%clk 0:02:29]} 10... Bg4 {[%clk 0:02:48.8]} 11. c3 {[%clk
0:02:28.8]} 11... Qd7 {[%clk 0:02:44.6]} 12. Be3 {[%clk 0:02:22.4]} 12... Rad8
{[%clk 0:02:32.2]} 13. Qd2 {[%clk 0:02:22]} 13... e5 {[%clk 0:02:29.7]} 14. dxe5
{[%clk 0:02:21.3]} 14... Nxe5 {[%clk 0:02:30.6]} 15. Bd4 {[%clk 0:02:18.6]}
15... Nf3+ {[%clk 0:02:25.9]} 16. Bxf3 {[%clk 0:02:18.4]} 16... Bxf3 {[%clk
0:02:26.8]} 17. Nf4 {[%clk 0:02:03.9]} 17... Bh6 {[%clk 0:02:26.4]} 18. Qe3
{[%clk 0:01:58.2]} 18... Rxf4 {[%clk 0:02:24.7]} 0-1

[Event "Early-Titled-Tuesday-Blitz-May-07-2024"]
[Site "Chess.com"]
[Date "2024.05.07"]
[Round "1"]
[White "KINGOF2SOAP"]
[Black "Onischuk_V"]
[Result "0-1"]
[WhiteElo "2459"]
[BlackElo "2819"]
[TimeControl "180+1"]
[EndTime "8:03:17 PDT"]
[Termination "Onischuk_V won by checkmate"]

1. e4 {[%clk 0:02:59.9]} 1... d6 {[%clk 0:02:51.7]} 2. d4 {[%clk 0:02:55.5]}
2... Nf6 {[%clk 0:02:51.5]} 3. Nc3 {[%clk 0:02:55.3]} 3... g6 {[%clk 0:02:52.2]}
4. f3 {[%clk 0:02:52.6]} 4... c6 {[%clk 0:02:51.6]} 5. Be3 {[%clk 0:02:52.4]}
5... b5 {[%clk 0:02:49.9]} 6. a3 {[%clk 0:02:49.3]} 6... Nbd7 {[%clk 0:02:49]}
7. Qd2 {[%clk 0:02:49.6]} 7... Bb7 {[%clk 0:02:43.8]} 8. O-O-O {[%clk
0:02:46.4]} 8... a5 {[%clk 0:02:38]} 9. Nge2 {[%clk 0:02:35.4]} 9... b4 {[%clk
0:02:37.9]} 10. axb4 {[%clk 0:02:34.8]} 10... axb4 {[%clk 0:02:37.7]} 11. Nb1
{[%clk 0:02:35.4]} 11... Qb6 {[%clk 0:02:34.3]} 12. d5 {[%clk 0:02:28.9]} 12...
Qc5 {[%clk 0:02:34.1]} 13. Bxc5 {[%clk 0:02:28.4]} 13... dxc5 {[%clk 0:02:18.9]}
14. g4 {[%clk 0:02:24.1]} 14... cxd5 {[%clk 0:02:13.9]} 15. exd5 {[%clk
0:02:22.7]} 15... Nxd5 {[%clk 0:02:12]} 16. Nf4 {[%clk 0:02:16.2]} 16... Bh6
{[%clk 0:02:07.2]} 17. Qe2 {[%clk 0:01:32.4]} 17... Bxf4+ {[%clk 0:02:04]} 18.
Nd2 {[%clk 0:01:31.9]} 18... Ra1# {[%clk 0:02:02.9]} 0-1

[Event "Early-Titled-Tuesday-Blitz-May-07-2024"]
[Site "Chess.com"]
[Date "2024.05.07"]
[Round "1"]
[White "SHIVACalypso"]
[Black "Shield12"]
[Result "1-0"]
[WhiteElo "2544"]
[BlackElo "2998"]
[TimeControl "180+1"]
[EndTime "8:03:23 PDT"]
[Termination "SHIVACalypso won by resignation"]

1. Nf3 {[%clk 0:03:00.3]} 1... c5 {[%clk 0:02:59.9]} 2. c4 {[%clk 0:02:58]} 2...
g6 {[%clk 0:03:00.1]} 3. g3 {[%clk 0:02:57.6]} 3... Bg7 {[%clk 0:03:00.3]} 4.
Bg2 {[%clk 0:02:58.3]} 4... Nf6 {[%clk 0:03:01.2]} 5. O-O {[%clk 0:02:58.6]}
5... d5 {[%clk 0:03:02.1]} 6. cxd5 {[%clk 0:02:58.3]} 6... Nxd5 {[%clk 0:03:03]}
7. Nc3 {[%clk 0:02:57.7]} 7... Nc6 {[%clk 0:03:02.7]} 8. Nxd5 {[%clk 0:02:55.4]}
8... Qxd5 {[%clk 0:03:03.6]} 9. d3 {[%clk 0:02:55.8]} 9... O-O {[%clk
0:03:03.1]} 10. Be3 {[%clk 0:02:54.6]} 10... Bd7 {[%clk 0:03:03]} 11. Rc1 {[%clk
0:02:49.7]} 11... Qxa2 {[%clk 0:03:02.8]} 12. b3 {[%clk 0:02:35.8]} 12... b6
{[%clk 0:02:57]} 13. d4 {[%clk 0:02:35.7]} 13... cxd4 {[%clk 0:02:49]} 14. Nxd4
{[%clk 0:02:35.2]} 14... Nxd4 {[%clk 0:02:46.6]} 15. Bxd4 {[%clk 0:02:34.6]}
15... Rad8 {[%clk 0:02:43.8]} 16. Ra1 {[%clk 0:02:20.8]} 16... Qxa1 {[%clk
0:02:33.2]} 17. Qxa1 {[%clk 0:02:19.9]} 17... Bxd4 {[%clk 0:02:32.3]} 18. Qxd4
{[%clk 0:02:19.7]} 18... Be6 {[%clk 0:02:32.7]} 19. Qb4 {[%clk 0:02:17.9]} 19...
Rd6 {[%clk 0:02:31.4]} 20. e4 {[%clk 0:02:15]} 20... Rfd8 {[%clk 0:02:30]} 21.
e5 {[%clk 0:02:14.5]} 21... R6d7 {[%clk 0:02:30]} 22. h4 {[%clk 0:02:12]} 22...
h5 {[%clk 0:02:29.1]} 23. Rc1 {[%clk 0:02:10]} 23... Kf8 {[%clk 0:02:26.6]} 24.
Kh2 {[%clk 0:02:00]} 24... Rd4 {[%clk 0:02:22.4]} 25. Qa3 {[%clk 0:01:59.1]}
25... R8d7 {[%clk 0:02:22.3]} 26. Bh3 {[%clk 0:01:56.9]} 26... Rd2 {[%clk
0:02:08.7]} 27. Bxe6 {[%clk 0:01:55]} 27... Rxf2+ {[%clk 0:02:05.3]} 28. Kg1
{[%clk 0:01:54.7]} 28... Rdd2 {[%clk 0:02:06.2]} 29. Bh3 {[%clk 0:01:53.9]} 1-0

[Event "Early-Titled-Tuesday-Blitz-May-07-2024"]
[Site "Chess.com"]
[Date "2024.05.07"]
[Round "1"]
[White "sudtirolese06"]
[Black "Franmu14"]
[Result "1-0"]
[WhiteElo "2427"]
[BlackElo "2708"]
[TimeControl "180+1"]
[EndTime "8:03:46 PDT"]
[Termination "sudtirolese06 won by resignation"]

1. e4 {[%clk 0:02:59.2]} 1... e5 {[%clk 0:02:38.1]} 2. Nf3 {[%clk 0:02:58.5]}
2... Nc6 {[%clk 0:02:39]} 3. Bc4 {[%clk 0:02:58.8]} 3... Bc5 {[%clk 0:02:36.6]}
4. O-O {[%clk 0:02:58.8]} 4... Nf6 {[%clk 0:02:35.7]} 5. d4 {[%clk 0:02:59.4]}
5... Bxd4 {[%clk 0:02:34.4]} 6. Nxd4 {[%clk 0:02:59.6]} 6... Nxd4 {[%clk
0:02:35.2]} 7. Bg5 {[%clk 0:03:00.1]} 7... h6 {[%clk 0:02:32.5]} 8. Bh4 {[%clk
0:03:00]} 8... d6 {[%clk 0:02:32.6]} 9. f4 {[%clk 0:03:00.4]} 9... Be6 {[%clk
0:02:32.9]} 10. Na3 {[%clk 0:02:59.8]} 10... Qe7 {[%clk 0:02:29.4]} 11. fxe5
{[%clk 0:02:57.8]} 11... dxe5 {[%clk 0:02:29.2]} 12. Bxf6 {[%clk 0:02:58.5]}
12... gxf6 {[%clk 0:02:29.3]} 13. c3 {[%clk 0:02:59.3]} 13... Bxc4 {[%clk
0:02:29]} 14. Nxc4 {[%clk 0:03:00.2]} 14... Ne6 {[%clk 0:02:29]} 15. Ne3 {[%clk
0:02:59.6]} 15... Rg8 {[%clk 0:02:14.1]} 16. Qf3 {[%clk 0:02:50.3]} 16... Nf4
{[%clk 0:02:10.3]} 17. Rad1 {[%clk 0:02:48]} 17... Qe6 {[%clk 0:02:03.2]} 18.
Kh1 {[%clk 0:02:44.4]} 18... Rd8 {[%clk 0:01:50.9]} 19. g3 {[%clk 0:02:40.6]}
19... Rxd1 {[%clk 0:01:50.1]} 20. Rxd1 {[%clk 0:02:38.6]} 20... Qh3 {[%clk
0:01:42.6]} 21. Qf2 {[%clk 0:02:12.5]} 21... Nh5 {[%clk 0:01:38.1]} 22. Nf5
{[%clk 0:02:08.6]} 22... Qg4 {[%clk 0:01:26.4]} 23. Qd2 {[%clk 0:02:00.9]} 23...
Qxe4+ {[%clk 0:01:25.3]} 24. Kg1 {[%clk 0:02:00.6]} 1-0

[Event "Early-Titled-Tuesday-Blitz-May-07-2024"]
[Site "Chess.com"]
[Date "2024.05.07"]
[Round "1"]
[White "lefonghua"]
[Black "lluiss"]
[Result "1-0"]
[WhiteElo "2584"]
[BlackElo "2219"]
[TimeControl "180+1"]
[EndTime "8:03:55 PDT"]
[Termination "lefonghua won by resignation"]

1. d4 {[%clk 0:03:00.9]} 1... Nf6 {[%clk 0:02:53.3]} 2. c4 {[%clk 0:03:01.1]}
2... g6 {[%clk 0:02:50.9]} 3. Nc3 {[%clk 0:03:01.3]} 3... d5 {[%clk 0:02:51.1]}
4. cxd5 {[%clk 0:03:02.2]} 4... Nxd5 {[%clk 0:02:50.8]} 5. e4 {[%clk 0:03:02.4]}
5... Nxc3 {[%clk 0:02:50.3]} 6. bxc3 {[%clk 0:03:03.3]} 6... Bg7 {[%clk
0:02:50.4]} 7. Nf3 {[%clk 0:03:04]} 7... c5 {[%clk 0:02:49.2]} 8. Rb1 {[%clk
0:03:03.9]} 8... O-O {[%clk 0:02:48.5]} 9. Be2 {[%clk 0:03:04]} 9... cxd4 {[%clk
0:02:48.3]} 10. cxd4 {[%clk 0:03:04.9]} 10... Qa5+ {[%clk 0:02:48.1]} 11. Bd2
{[%clk 0:03:05.3]} 11... Qxa2 {[%clk 0:02:48.1]} 12. O-O {[%clk 0:03:06]} 12...
Bg4 {[%clk 0:02:47.7]} 13. Bg5 {[%clk 0:03:05.6]} 13... Rd8 {[%clk 0:02:41.2]}
14. d5 {[%clk 0:02:57.1]} 14... Bf6 {[%clk 0:02:40.6]} 15. Bxf6 {[%clk
0:02:53.9]} 15... exf6 {[%clk 0:02:41.5]} 16. Rxb7 {[%clk 0:02:53.2]} 16... Nd7
{[%clk 0:02:38.3]} 17. h3 {[%clk 0:02:34.1]} 17... Bxf3 {[%clk 0:02:33.3]} 18.
Bxf3 {[%clk 0:02:35]} 18... Rab8 {[%clk 0:02:31.5]} 19. Rxb8 {[%clk 0:02:26.5]}
19... Rxb8 {[%clk 0:02:30.8]} 20. Qa1 {[%clk 0:02:17]} 20... Rb2 {[%clk
0:01:56.4]} 21. Qxa2 {[%clk 0:02:16]} 21... Rxa2 {[%clk 0:01:56.4]} 22. Rc1
{[%clk 0:02:04.1]} 22... Ne5 {[%clk 0:01:56.1]} 23. Rc7 {[%clk 0:01:58.5]} 23...
Nxf3+ {[%clk 0:01:46.7]} 24. gxf3 {[%clk 0:01:58.5]} 24... a5 {[%clk 0:01:47.2]}
25. Ra7 {[%clk 0:01:48.7]} 25... Kg7 {[%clk 0:01:45.8]} 26. Kg2 {[%clk
0:01:46.9]} 26... f5 {[%clk 0:01:45.8]} 27. e5 {[%clk 0:01:44.4]} 27... f4
{[%clk 0:01:45.3]} 28. e6 {[%clk 0:01:44]} 28... Kg8 {[%clk 0:01:37.3]} 29. e7
{[%clk 0:01:41.2]} 1-0

[Event "Early-Titled-Tuesday-Blitz-May-07-2024"]
[Site "Chess.com"]
[Date "2024.05.07"]
[Round "1"]
[White "Kazmin_Semyon"]
[Black "Karina_Ivanova"]
[Result "1-0"]
[WhiteElo "2584"]
[BlackElo "2223"]
[TimeControl "180+1"]
[EndTime "8:03:59 PDT"]
[Termination "Kazmin_Semyon won by resignation"]

1. d4 {[%clk 0:02:57.7]} 1... Nf6 {[%clk 0:02:58.6]} 2. c4 {[%clk 0:02:57.3]}
2... e6 {[%clk 0:02:58.2]} 3. Nc3 {[%clk 0:02:57.1]} 3... Bb4 {[%clk 0:02:57.4]}
4. a3 {[%clk 0:02:57.6]} 4... Bxc3+ {[%clk 0:02:56.8]} 5. bxc3 {[%clk
0:02:58.5]} 5... b6 {[%clk 0:02:49.6]} 6. f3 {[%clk 0:02:57.9]} 6... Bb7 {[%clk
0:02:42.2]} 7. e4 {[%clk 0:02:58]} 7... d6 {[%clk 0:02:40.7]} 8. Bd3 {[%clk
0:02:56.5]} 8... Nbd7 {[%clk 0:02:37.6]} 9. Ne2 {[%clk 0:02:56.4]} 9... e5
{[%clk 0:02:33.8]} 10. O-O {[%clk 0:02:54.5]} 10... Qe7 {[%clk 0:02:23.9]} 11.
Ng3 {[%clk 0:02:50.2]} 11... g6 {[%clk 0:02:21.7]} 12. a4 {[%clk 0:02:47.8]}
12... a5 {[%clk 0:02:15.9]} 13. f4 {[%clk 0:02:45.2]} 13... exf4 {[%clk
0:02:09]} 14. Bxf4 {[%clk 0:02:44.1]} 14... O-O-O {[%clk 0:02:04.9]} 15. Qf3
{[%clk 0:02:35.9]} 15... Rde8 {[%clk 0:01:56.7]} 16. Rae1 {[%clk 0:02:34.4]}
16... h6 {[%clk 0:01:43.4]} 17. h3 {[%clk 0:02:33.4]} 17... g5 {[%clk
0:01:34.3]} 18. Bc1 {[%clk 0:02:29.4]} 18... Qf8 {[%clk 0:01:18.8]} 19. Qf2
{[%clk 0:02:18.3]} 19... Qe7 {[%clk 0:01:08.3]} 20. Ba3 {[%clk 0:02:12.5]} 20...
Rh7 {[%clk 0:01:01.2]} 21. e5 {[%clk 0:02:09]} 1-0

[Event "Early-Titled-Tuesday-Blitz-May-07-2024"]
[Site "Chess.com"]
[Date "2024.05.07"]
[Round "1"]
[White "Alphafischer2019"]
[Black "Piccadilly123"]
[Result "1-0"]
[WhiteElo "2664"]
[BlackElo "2374"]
[TimeControl "180+1"]
[EndTime "8:04:01 PDT"]
[Termination "Alphafischer2019 won by resignation"]

1. Nf3 {[%clk 0:03:00.9]} 1... Nf6 {[%clk 0:02:54.4]} 2. g3 {[%clk 0:03:00.8]}
2... g6 {[%clk 0:02:54.5]} 3. Bg2 {[%clk 0:03:01.3]} 3... Bg7 {[%clk 0:02:52.9]}
4. c4 {[%clk 0:03:02]} 4... O-O {[%clk 0:02:52.1]} 5. O-O {[%clk 0:03:01.1]}
5... d6 {[%clk 0:02:50.1]} 6. Nc3 {[%clk 0:03:00.2]} 6... e5 {[%clk 0:02:49.9]}
7. d3 {[%clk 0:03:00.7]} 7... Nbd7 {[%clk 0:02:48.4]} 8. Rb1 {[%clk 0:02:45.9]}
8... a5 {[%clk 0:02:43.2]} 9. a3 {[%clk 0:02:45.3]} 9... c6 {[%clk 0:02:42.5]}
10. b4 {[%clk 0:02:44.5]} 10... axb4 {[%clk 0:02:43.2]} 11. axb4 {[%clk
0:02:44.5]} 11... Ne8 {[%clk 0:02:38.7]} 12. b5 {[%clk 0:02:42.1]} 12... Nc5
{[%clk 0:02:38.5]} 13. bxc6 {[%clk 0:02:41.4]} 13... bxc6 {[%clk 0:02:38.7]} 14.
Nd2 {[%clk 0:02:41.2]} 14... Qc7 {[%clk 0:02:38.4]} 15. Nde4 {[%clk 0:02:29.7]}
15... Nxe4 {[%clk 0:02:35.5]} 16. Nxe4 {[%clk 0:02:30.6]} 16... f5 {[%clk
0:02:35.7]} 17. Nd2 {[%clk 0:02:29.6]} 17... Nf6 {[%clk 0:02:35]} 18. Bb2 {[%clk
0:02:26.4]} 18... Be6 {[%clk 0:02:34.7]} 19. Ra1 {[%clk 0:02:24.5]} 19... Rfb8
{[%clk 0:02:34.6]} 20. Qc2 {[%clk 0:02:22.2]} 20... Nd7 {[%clk 0:02:30.8]} 21.
Rfb1 {[%clk 0:02:08.6]} 21... Nc5 {[%clk 0:02:28.3]} 22. Bc3 {[%clk 0:02:08]}
22... Bh6 {[%clk 0:02:27.3]} 23. e3 {[%clk 0:02:04.5]} 23... Rxb1+ {[%clk
0:02:23.5]} 24. Rxb1 {[%clk 0:02:03.9]} 24... Rb8 {[%clk 0:02:23.9]} 25. Rxb8+
{[%clk 0:01:59.5]} 25... Qxb8 {[%clk 0:02:24.8]} 26. d4 {[%clk 0:01:59.3]} 26...
exd4 {[%clk 0:02:12.3]} 27. exd4 {[%clk 0:01:58.4]} 27... Nd7 {[%clk 0:02:09.5]}
28. Bxc6 {[%clk 0:01:56.9]} 28... Qc7 {[%clk 0:02:09.1]} 29. d5 {[%clk
0:01:56.3]} 29... Bf7 {[%clk 0:02:05.1]} 30. Nf3 {[%clk 0:01:56]} 30... Nb6
{[%clk 0:02:02]} 31. Qd3 {[%clk 0:01:51.9]} 31... Bg7 {[%clk 0:01:55.3]} 32.
Bxg7 {[%clk 0:01:50.7]} 32... Kxg7 {[%clk 0:01:56.2]} 33. Qd4+ {[%clk
0:01:50.9]} 33... Kg8 {[%clk 0:01:56.9]} 34. Ng5 {[%clk 0:01:42.1]} 34... Na4
{[%clk 0:01:52.9]} 35. Bxa4 {[%clk 0:01:41.3]} 1-0

[Event "Early-Titled-Tuesday-Blitz-May-07-2024"]
[Site "Chess.com"]
[Date "2024.05.07"]
[Round "1"]
[White "Irishchessman16"]
[Black "stratacticos"]
[Result "1-0"]
[WhiteElo "2546"]
[BlackElo "1835"]
[TimeControl "180+1"]
[EndTime "8:04:30 PDT"]
[Termination "Irishchessman16 won by resignation"]

1. e4 {[%clk 0:02:58.8]} 1... c5 {[%clk 0:02:59.1]} 2. Nf3 {[%clk 0:02:57.6]}
2... Nc6 {[%clk 0:02:58.8]} 3. d4 {[%clk 0:02:51.3]} 3... cxd4 {[%clk
0:02:58.4]} 4. Nxd4 {[%clk 0:02:52.2]} 4... e5 {[%clk 0:02:57]} 5. Nf5 {[%clk
0:02:47.4]} 5... d5 {[%clk 0:02:56.3]} 6. exd5 {[%clk 0:02:40.1]} 6... Bxf5
{[%clk 0:02:55.3]} 7. dxc6 {[%clk 0:02:40.3]} 7... Qxd1+ {[%clk 0:02:54.6]} 8.
Kxd1 {[%clk 0:02:41.2]} 8... bxc6 {[%clk 0:02:54.3]} 9. Bd3 {[%clk 0:02:39.3]}
9... O-O-O {[%clk 0:02:44.4]} 10. Ke2 {[%clk 0:02:38.6]} 10... e4 {[%clk
0:02:43.4]} 11. Bc4 {[%clk 0:02:38.4]} 11... Bg4+ {[%clk 0:02:38.8]} 12. f3
{[%clk 0:02:38.5]} 12... exf3+ {[%clk 0:02:38.2]} 13. gxf3 {[%clk 0:02:39.4]}
13... Bh5 {[%clk 0:02:37.6]} 14. Bg5 {[%clk 0:02:37.2]} 14... f6 {[%clk
0:02:34.8]} 15. Be3 {[%clk 0:02:35.9]} 15... Kb7 {[%clk 0:02:29.6]} 16. Nd2
{[%clk 0:02:30.4]} 16... Ne7 {[%clk 0:02:26.2]} 17. Ne4 {[%clk 0:02:25]} 17...
Nd5 {[%clk 0:02:24.5]} 18. Bxd5 {[%clk 0:02:23]} 18... cxd5 {[%clk 0:02:13.7]}
19. Ng3 {[%clk 0:02:22.9]} 19... Bg6 {[%clk 0:02:11]} 20. c3 {[%clk 0:02:23.5]}
20... Bd6 {[%clk 0:02:02.1]} 21. Kf2 {[%clk 0:02:23.7]} 21... h5 {[%clk
0:01:59.2]} 22. h4 {[%clk 0:02:22.3]} 22... Rhe8 {[%clk 0:01:57.7]} 23. Ne2
{[%clk 0:02:16.4]} 23... Kc6 {[%clk 0:01:48.6]} 24. Rhg1 {[%clk 0:02:10.1]}
24... Rxe3 {[%clk 0:01:35.3]} 25. Kxe3 {[%clk 0:02:01.2]} 25... Re8+ {[%clk
0:01:34.3]} 26. Kf2 {[%clk 0:02:00.2]} 26... Bd3 {[%clk 0:01:33.9]} 27. Nd4+
{[%clk 0:01:59.7]} 27... Kb6 {[%clk 0:01:31.1]} 28. Rxg7 {[%clk 0:01:52.9]}
28... Bc5 {[%clk 0:01:22.5]} 29. Re1 {[%clk 0:01:53.1]} 29... Bxd4+ {[%clk
0:01:20]} 30. cxd4 {[%clk 0:01:54]} 30... Rxe1 {[%clk 0:01:18.2]} 31. Kxe1
{[%clk 0:01:53.7]} 31... Kb5 {[%clk 0:01:17.6]} 32. Kd2 {[%clk 0:01:53.3]} 32...
Bf5 {[%clk 0:01:16.3]} 33. Rxa7 {[%clk 0:01:52.8]} 33... Kc4 {[%clk 0:01:15.9]}
34. Ke3 {[%clk 0:01:52.5]} 1-0

[Event "Early-Titled-Tuesday-Blitz-May-07-2024"]
[Site "Chess.com"]
[Date "2024.05.07"]
[Round "1"]
[White "jcibarra"]
[Black "JG-17"]
[Result "1-0"]
[WhiteElo "2958"]
[BlackElo "2524"]
[TimeControl "180+1"]
[EndTime "8:04:37 PDT"]
[Termination "jcibarra won by resignation"]

1. e4 {[%clk 0:03:00.9]} 1... c5 {[%clk 0:03:00.4]} 2. Nf3 {[%clk 0:03:00.8]}
2... d6 {[%clk 0:03:00.9]} 3. d4 {[%clk 0:03:00.9]} 3... cxd4 {[%clk 0:03:01.8]}
4. Nxd4 {[%clk 0:03:01.5]} 4... Nf6 {[%clk 0:03:02.4]} 5. Nc3 {[%clk 0:03:01.8]}
5... g6 {[%clk 0:03:02.9]} 6. Be3 {[%clk 0:03:01.5]} 6... Nc6 {[%clk 0:03:03.4]}
7. f3 {[%clk 0:03:01.4]} 7... h5 {[%clk 0:03:03.7]} 8. Qd2 {[%clk 0:02:57.3]}
8... Nxd4 {[%clk 0:03:04.1]} 9. Bxd4 {[%clk 0:02:58.2]} 9... Bh6 {[%clk
0:03:04.2]} 10. Bb5+ {[%clk 0:02:56.3]} 10... Kf8 {[%clk 0:02:56.6]} 11. Qf2
{[%clk 0:02:56.5]} 11... Be6 {[%clk 0:02:36.3]} 12. O-O {[%clk 0:02:52.5]} 12...
h4 {[%clk 0:02:26]} 13. h3 {[%clk 0:02:50.1]} 13... Bf4 {[%clk 0:02:22.1]} 14.
Ne2 {[%clk 0:02:48]} 14... Be5 {[%clk 0:02:13.7]} 15. c3 {[%clk 0:02:44.4]}
15... a6 {[%clk 0:02:02.6]} 16. Bd3 {[%clk 0:02:44.3]} 16... b5 {[%clk
0:02:01.5]} 17. f4 {[%clk 0:02:44.5]} 17... Bxd4 {[%clk 0:02:01.5]} 18. cxd4
{[%clk 0:02:44.1]} 18... Bc4 {[%clk 0:01:58.1]} 19. Bxc4 {[%clk 0:02:42.2]}
19... bxc4 {[%clk 0:01:58.6]} 20. Nc3 {[%clk 0:02:42.8]} 20... Kg7 {[%clk
0:01:43.7]} 21. e5 {[%clk 0:02:42.9]} 21... Nh5 {[%clk 0:01:40.1]} 22. Qxh4
{[%clk 0:02:41.7]} 22... dxe5 {[%clk 0:01:39.1]} 23. fxe5 {[%clk 0:02:42.1]}
23... e6 {[%clk 0:01:33.7]} 24. Qf2 {[%clk 0:02:39.6]} 24... Ra7 {[%clk
0:01:31.5]} 25. g4 {[%clk 0:02:35.4]} 25... Qg5 {[%clk 0:01:22.5]} 26. Ne4
{[%clk 0:02:32.9]} 26... Qh6 {[%clk 0:01:11.6]} 27. gxh5 {[%clk 0:02:29.6]}
27... Qxh5 {[%clk 0:01:12.5]} 28. Qf6+ {[%clk 0:02:21.7]} 28... Kg8 {[%clk
0:01:10.5]} 29. Rf3 {[%clk 0:02:21.8]} 29... Rd7 {[%clk 0:01:07]} 30. Nd6 {[%clk
0:02:20.6]} 30... Rh7 {[%clk 0:01:03.9]} 31. Raf1 {[%clk 0:02:19.3]} 31... g5
{[%clk 0:00:51.8]} 32. Rg3 {[%clk 0:02:18]} 32... Rg7 {[%clk 0:00:49.6]} 33. Qf3
{[%clk 0:02:11.4]} 33... Qh4 {[%clk 0:00:47.6]} 34. Qg4 {[%clk 0:02:10.5]} 34...
Qh6 {[%clk 0:00:47.1]} 35. Ne4 {[%clk 0:02:09.7]} 35... Rxd4 {[%clk 0:00:44.7]}
36. Nf6+ {[%clk 0:02:09.2]} 1-0